fUSD/lending_fUSD_20260123
["ID","MTS","AMOUNT","RATE_DAILY","PERIOD"]
[403137506,1769187966288,-600.0,0.00014973,2]
[403137507,1769187966314,-500.0,0.00014973,2]
[403137508,1769187966341,-500.0,0.00014973,2]
[403137509,1769187966368,-500.0,0.00014973,2]
[403137510,1769187966394,-500.0,0.00014973,2]
[403137511,1769187966420,-500.0,0.00014973,2]
[403137512,1769187966446,-500.0,0.00014973,2]
[403137513,1769187966473,-500.0,0.00014973,2]
[403137514,1769187966502,-500.0,0.00014973,2]
[403137515,1769187966528,-500.0,0.00014973,2]
[403137516,1769187966556,-500.0,0.00014973,2]
[403137517,1769187966587,-500.0,0.00014973,2]
[403137518,1769187966615,-500.0,0.00014973,2]
[403137519,1769187966641,-500.0,0.00014973,2]
[403137520,1769187966667,-500.0,0.00014973,2]
[403137521,1769187966691,-500.0,0.00014973,2]
[403137522,1769187966717,-500.0,0.00014973,2]
[403137523,1769187966746,-500.0,0.00014973,2]
[403137524,1769187966771,-500.0,0.00014973,2]
[403137525,1769187966796,-500.0,0.00014973,2]
[403137526,1769187966821,-500.0,0.00014973,2]
[403137527,1769187966845,-500.0,0.00014973,2]
[403137528,1769187966870,-118.35,0.00014973,2]
[403137529,1769187998134,-157.52357036,0.00014973,2]
[403137543,1769188232396,-300.41719031,0.00014737,2]
[403137550,1769188232526,-1552.00280969,0.00014737,2]
[403137552,1769188232536,-300.0,0.00014872,2]
[403137554,1769188232546,-1200.0,0.00014872,2]
[403137556,1769188232556,-532.31284053,0.00014872,2]
[403137558,1769188232565,-176.73800637,0.00014872,2]
[403137560,1769188232575,-13506.42830197,0.00014873,2]
[403137562,1769188232587,-19161.10153721,0.00014873,2]
[403137564,1769188232599,-87027.91612383,0.00014873,2]
[403137566,1769188232611,-290.0,0.00014873,2]
[403137569,1769188232632,-46620.5263573,0.00014873,2]
[403137575,1769188232674,-833394.02767969,0.00014873,2]
[403137577,1769188232684,-150.0,0.00014971,2]
[403137579,1769188232693,-5734.913,0.00014973,2]
[403137581,1769188232703,-379.84594958,0.00014974,2]
[403137583,1769188232713,-30542.83,0.00014975,2]
[403137585,1769188232722,-9123.92,0.00015049,2]
[403137587,1769188232732,-1243.854,0.00015072,2]
[403137589,1769188232741,-1207.6955,0.00015073,2]
[403137591,1769188232750,-691.79115622,0.00015074,2]
[403137593,1769188232760,-336.93370022,0.00015074,2]
[403137595,1769188232771,-200.0,0.00015078,2]
[403137597,1769188232780,-500.0,0.00015172,2]
[403137599,1769188232789,-500.0,0.00015172,2]
[403137601,1769188232801,-500.0,0.00015172,2]
[403137603,1769188232811,-500.0,0.00015172,2]
[403137605,1769188232820,-500.0,0.00015172,2]
[403137607,1769188232829,-530.9816303,0.00015172,2]
[403137609,1769188232840,-500.0,0.00015172,2]
[403137611,1769188232851,-500.0,0.00015172,2]
[403137613,1769188232860,-298.18754647,0.00015172,2]
[403137615,1769188232871,-500.0,0.00015172,2]
[403137617,1769188232880,-500.0,0.00015172,2]
[403137619,1769188232890,-500.0,0.00015172,2]
[403137621,1769188232900,-500.0,0.00015172,2]
[403137623,1769188232909,-500.0,0.00015172,2]
[403137625,1769188232919,-500.0,0.00015172,2]
[403137627,1769188232928,-499.99,0.00015172,2]
[403137629,1769188232938,-18035.16,0.00015172,2]
[403137631,1769188232947,-452.11,0.00015172,2]
[403137633,1769188232956,-297.59,0.00015172,2]
[403137635,1769188232965,-20009.02,0.00015172,2]
[403137637,1769188232975,-9150.87,0.00015172,2]
[403137639,1769188232984,-1258.35,0.00015172,2]
[403137641,1769188232993,-9999.99,0.00015172,2]
[403137643,1769188233002,-150.99,0.00015172,2]
[403137645,1769188233013,-9999.99,0.00015172,2]
[403137647,1769188233023,-999.99,0.00015172,2]
[403137649,1769188233032,-299.99,0.00015172,2]
[403137651,1769188233042,-260.36011241,0.00015174,2]
[403137653,1769188233051,-781.65,0.00015247,2]
[403137655,1769188233060,-476.1098,0.00015274,2]
[403137657,1769188233069,-1000.0,0.00015274,2]
[403137659,1769188233079,-500.0,0.00015373,2]
[403137661,1769188233089,-500.0,0.00015373,2]
[403137663,1769188233099,-500.0,0.00015373,2]
[403137664,1769188233108,-691.79115622,0.00015478,2]
[403137666,1769188233118,-781.65,0.00015521,2]
[403137667,1769188233127,-53101.53,0.00015579,2]
[403137669,1769188233137,-260.36011237,0.00015628,2]
[403137671,1769188233147,-2054.96,0.00015631,2]
[403137672,1769188233157,-500.0,0.00015689,2]
[403137673,1769188233166,-150.0,0.00015689,2]
[403137674,1769188233176,-150.0,0.00015689,2]
[403137675,1769188233186,-509.55074254,0.00015744,2]
[403137676,1769188233196,-150.0,0.00015744,2]
[403137677,1769188233206,-781.65,0.00015795,2]
[403137678,1769188233215,-691.79115622,0.00015881,2]
[403137679,1769188233225,-781.65,0.00016069,2]
[403137680,1769188233234,-260.36011237,0.00016083,2]
[403137681,1769188233243,-255.0,0.00016094,2]
[403137682,1769188233253,-420.0,0.00016279,2]
[403137683,1769188233262,-691.79115622,0.00016285,2]
[403137684,1769188233272,-336.93370021,0.00016297,2]
[403137685,1769188233281,-781.65,0.00016343,2]
[403137686,1769188233291,-491.75,0.00016373,2]
[403137687,1769188233300,-3401.64,0.00016429,2]
[403137688,1769188233310,-150.0,0.00016438,2]
[403137689,1769188233319,-226.3117034,0.00016438,2]
[403137690,1769188233329,-226.93,0.00016438,2]
[403137691,1769188233339,-151.0,0.00016438,2]
[403137692,1769188233349,-260.36011237,0.00016537,2]
[403137693,1769188233359,-781.65,0.00016617,2]
[403137694,1769188233368,-500.0,0.00016662,2]
[403137695,1769188233378,-691.79115622,0.00016689,2]
[403137696,1769188233388,-200.0,0.00016716,2]
[403137697,1769188233398,-781.67,0.00016891,2]
[403137698,1769188233407,-14505.31,0.00016922,2]
[403137699,1769188233417,-500.0,0.00016959,2]
[403137700,1769188233426,-3198.98,0.0001699,2]
[403137701,1769188233436,-260.36011237,0.00016991,2]
[403137702,1769188233446,-250.0,0.00017,2]
[403137703,1769188233455,-691.79115622,0.00017093,2]
[403137704,1769188233465,-174.61919141,0.00017099,2]
[403137705,1769188233474,-209.40437684,0.00017099,2]
[403137706,1769188233885,-250.0,0.00017099,2]
[403137707,1769188233895,-250.0,0.00017099,2]
[403137708,1769188233905,-250.0,0.00017099,2]
[403137709,1769188233914,-329.2713654,0.00017099,2]
[403137710,1769188233923,-151.0,0.00017099,2]
[403137711,1769188233932,-303.1714215,0.00017099,2]
[403137712,1769188233942,-578.20924308,0.00017099,2]
[403137713,1769188233952,-250.0,0.00017099,2]
[403137714,1769188233960,-854.2589148,0.00017099,2]
[403137715,1769188233970,-250.0,0.00017099,2]
[403137716,1769188233979,-250.0,0.00017099,2]
[403137717,1769188233989,-250.0,0.00017099,2]
[403137718,1769188233998,-250.0,0.00017099,2]
[403137719,1769188234007,-250.0,0.00017099,2]
[403137720,1769188234017,-250.0,0.00017099,2]
[403137721,1769188234027,-250.0,0.00017099,2]
[403137722,1769188234038,-250.0,0.00017099,2]
[403137723,1769188234051,-250.0,0.00017099,2]
[403137724,1769188234060,-250.0,0.00017099,2]
[403137725,1769188234070,-500.0,0.00017099,2]
[403137726,1769188234080,-250.0,0.00017099,2]
[403137727,1769188234090,-250.0,0.00017099,2]
[403137728,1769188234100,-500.0,0.00017099,2]
[403137729,1769188234110,-250.0,0.00017099,2]
[403137730,1769188234120,-250.0,0.00017099,2]
[403137731,1769188234129,-250.0,0.00017099,2]
[403137732,1769188234139,-263.31471796,0.00017099,2]
[403137733,1769188234148,-250.0,0.00017099,2]
[403137734,1769188234158,-500.0,0.00017099,2]
[403137735,1769188234168,-500.0,0.00017099,2]
[403137736,1769188234177,-500.0,0.00017099,2]
[403137737,1769188234187,-500.0,0.00017099,2]
[403137738,1769188234198,-250.0,0.00017099,2]
[403137739,1769188234208,-500.0,0.00017099,2]
[403137740,1769188234218,-250.0,0.00017099,2]
[403137741,1769188234228,-250.0,0.00017099,2]
[403137742,1769188234241,-500.0,0.00017099,2]
[403137743,1769188234250,-250.0,0.00017099,2]
[403137744,1769188234259,-250.0,0.00017099,2]
[403137745,1769188234271,-316.71790006,0.00017099,2]
[403137746,1769188234281,-250.0,0.00017099,2]
[403137747,1769188234290,-500.0,0.00017099,2]
[403137748,1769188234299,-500.0,0.00017099,2]
[403137749,1769188234309,-250.0,0.00017099,2]
[403137750,1769188234318,-322.6107,0.00017099,2]
[403137751,1769188234327,-500.0,0.00017099,2]
[403137752,1769188234337,-500.0,0.00017099,2]
[403137753,1769188234347,-250.0,0.00017099,2]
[403137754,1769188234356,-250.0,0.00017099,2]
[403137755,1769188234366,-500.0,0.00017099,2]
[403137756,1769188234375,-500.0,0.00017099,2]
[403137757,1769188234386,-250.0,0.00017099,2]
[403137758,1769188234395,-250.0,0.00017099,2]
[403137759,1769188234405,-500.0,0.00017099,2]
[403137760,1769188234414,-250.0,0.00017099,2]
[403137761,1769188234424,-500.0,0.00017099,2]
[403137762,1769188234433,-250.0,0.00017099,2]
[403137763,1769188234443,-500.0,0.00017099,2]
[403137764,1769188234452,-250.0,0.00017099,2]
[403137765,1769188234462,-500.0,0.00017099,2]
[403137766,1769188234472,-250.0,0.00017099,2]
[403137767,1769188234481,-500.0,0.00017099,2]
[403137768,1769188234491,-500.0,0.00017099,2]
[403137769,1769188234501,-250.0,0.00017099,2]
[403137770,1769188234510,-250.0,0.00017099,2]
[403137771,1769188234519,-500.0,0.00017099,2]
[403137772,1769188234528,-500.0,0.00017099,2]
[403137773,1769188234547,-250.0,0.00017099,2]
[403137774,1769188234559,-500.0,0.00017099,2]
[403137775,1769188234569,-500.0,0.00017099,2]
[403137776,1769188234579,-500.0,0.00017099,2]
[403137777,1769188234589,-151.0,0.00017099,2]
[403137778,1769188234599,-250.0,0.00017099,2]
[403137779,1769188234610,-500.0,0.00017099,2]
[403137780,1769188234620,-500.0,0.00017099,2]
[403137781,1769188234629,-500.0,0.00017099,2]
[403137782,1769188234639,-151.0,0.00017099,2]
[403137783,1769188234650,-250.0,0.00017099,2]
[403137784,1769188234659,-500.0,0.00017099,2]
[403137785,1769188234669,-500.0,0.00017099,2]
[403137786,1769188234679,-500.0,0.00017099,2]
[403137787,1769188234690,-151.0,0.00017099,2]
[403137788,1769188234699,-250.0,0.00017099,2]
[403137789,1769188234709,-500.0,0.00017099,2]
[403137790,1769188234719,-500.0,0.00017099,2]
[403137791,1769188234729,-151.0,0.00017099,2]
[403137792,1769188234738,-250.0,0.00017099,2]
[403137793,1769188234748,-151.0,0.00017099,2]
[403137794,1769188234758,-151.0,0.00017099,2]
[403137795,1769188234771,-250.0,0.00017099,2]
[403137796,1769188234781,-151.0,0.00017099,2]
[403137797,1769188234791,-151.0,0.00017099,2]
[403137798,1769188234805,-151.0,0.00017099,2]
[403137799,1769188234815,-151.0,0.00017099,2]
[403137800,1769188234824,-151.0,0.00017099,2]
[403137801,1769188234834,-151.0,0.00017099,2]
[403137802,1769188234846,-250.0,0.00017099,2]
[403137803,1769188234856,-250.0,0.00017099,2]
[403137804,1769188234867,-250.0,0.00017099,2]
[403137805,1769188234878,-250.0,0.00017099,2]
[403137806,1769188234888,-250.0,0.00017099,2]
[403137807,1769188234898,-2468.0,0.00017099,2]
[403137808,1769188234908,-250.0,0.00017099,2]
[403137809,1769188234918,-250.0,0.00017099,2]
[403137810,1769188234928,-250.0,0.00017099,2]
[403137811,1769188234938,-500.0,0.00017099,2]
[403137812,1769188234948,-250.0,0.00017099,2]
[403137813,1769188234957,-500.0,0.00017099,2]
[403137814,1769188234971,-250.0,0.00017099,2]
[403137815,1769188234981,-500.0,0.00017099,2]
[403137816,1769188234991,-250.0,0.00017099,2]
[403137817,1769188235002,-500.0,0.00017099,2]
[403137818,1769188235012,-500.0,0.00017099,2]
[403137819,1769188235022,-500.0,0.00017099,2]
[403137820,1769188235033,-500.0,0.00017099,2]
[403137821,1769188235043,-2324.64294723,0.00017099,2]
[403137822,1769188235053,-500.0,0.00017099,2]
[403137823,1769188235063,-500.0,0.00017099,2]
[403137824,1769188235073,-500.0,0.00017099,2]
[403137825,1769188235083,-500.0,0.00017099,2]
[403137826,1769188235094,-1677.0,0.0001728,2]
[403137827,1769188235105,-1677.0,0.0001734,2]
[403137828,1769188235117,-2715.51703724,0.00017415,2]
[403137829,1769188235127,-158.25396365,0.00017417,2]
[403137830,1769188235138,-260.36011237,0.00017446,2]
[403137831,1769188235148,-2715.51703719,0.00017469,2]
[403137832,1769188235158,-691.79115622,0.00017496,2]
[403137833,1769188235172,-10032.71121087,0.00017515,2]
[403137834,1769188235182,-336.93370021,0.0001752,2]
[403137835,1769188235192,-2715.51703719,0.00017523,2]
[403137836,1769188235202,-208.0,0.00017544,2]
[403137837,1769188235212,-2715.51703719,0.00017577,2]
[403137838,1769188235222,-1677.0,0.0001762,2]
[403137839,1769188235232,-2715.51703719,0.00017631,2]
[403137840,1769188235242,-1677.0,0.00017632,2]
[403137841,1769188235251,-1677.0,0.00017643,2]
[403137842,1769188235261,-181.08010149,0.00017647,2]
[403137843,1769188235271,-336.21539799,0.00017647,2]
[403137844,1769188235281,-807.40319455,0.00017647,2]
[403137845,1769188235291,-151.0,0.00017647,2]
[403137846,1769188235301,-2715.51703719,0.00017684,2]
[403137847,1769188235311,-1284.0,0.00017721,2]
[403137848,1769188235321,-2715.51703719,0.00017738,2]
[403137849,1769188235331,-1000.0,0.00017755,2]
[403137850,1769188235340,-1000.0,0.0001776,2]
[403137851,1769188235350,-1000.0,0.00017765,2]
[403137852,1769188235363,-1000.0,0.00017767,2]
[403137853,1769188235373,-1000.0,0.00017792,2]
[403137854,1769188235383,-2715.51703719,0.00017792,2]
[403137855,1769188235392,-1677.0,0.00017793,2]
[403137856,1769188235402,-2977.629,0.00017801,2]
[403137857,1769188235412,-304.843,0.00017801,2]
[403137858,1769188235422,-1000.0,0.00017806,2]
[403137859,1769188235431,-587.0,0.00017819,2]
[403137860,1769188235440,-418.70464,0.0001782,2]
[403137861,1769188235450,-418.70464,0.0001782,2]
[403137862,1769188235460,-418.70464,0.0001782,2]
[403137863,1769188235469,-418.70464,0.0001782,2]
[403137864,1769188235479,-1000.0,0.00017831,2]
[403137865,1769188235488,-1677.0,0.00017835,2]
[403137866,1769188235498,-2715.51703719,0.00017846,2]
[403137867,1769188235507,-1000.0,0.00017853,2]
[403137868,1769188235517,-1000.0,0.00017853,2]
[403137869,1769188235527,-1000.0,0.00017859,2]
[403137870,1769188235536,-1000.0,0.00017861,2]
[403137871,1769188235550,-1000.0,0.0001787,2]
[403137872,1769188235560,-1000.0,0.00017878,2]
[403137873,1769188235570,-1000.0,0.00017896,2]
[403137874,1769188235580,-1000.0,0.00017898,2]
[403137875,1769188235590,-25000.0,0.000179,3]
[403137876,1769188235600,-3484.13133923,0.000179,3]
[403137877,1769188235610,-1000.0,0.000179,2]
[403137878,1769188235620,-260.36011237,0.000179,2]
[403137879,1769188235630,-5697.77372439,0.000179,2]
[403137880,1769188235640,-691.79115622,0.000179,2]
[403137881,1769188235651,-3017.63166672,0.000179,2]
[403137882,1769188235663,-211.01012704,0.000179,3]
[403137883,1769188235673,-151.0,0.00017901,2]
[403137884,1769188235683,-1000.0,0.00017904,2]
[403137885,1769188235693,-1000.0,0.00017921,2]
[403137886,1769188235703,-1000.0,0.00017922,2]
[403137887,1769188235713,-1000.0,0.00017923,2]
[403137888,1769188235723,-1000.0,0.00017926,2]
[403137889,1769188235734,-1000.0,0.0001793,2]
[403137890,1769188235743,-1000.0,0.00017934,2]
[403137891,1769188235753,-1000.0,0.00017947,2]
[403137892,1769188235764,-1000.0,0.00017955,2]
[403137893,1769188235774,-1000.0,0.00017955,2]
[403137894,1769188235785,-1000.0,0.00017955,2]
[403137895,1769188235797,-1000.0,0.00017959,2]
[403137896,1769188235808,-1000.0,0.00017962,2]
[403137897,1769188235818,-1000.0,0.00017968,2]
[403137898,1769188235828,-150.0,0.00017973,2]
[403137899,1769188235839,-150.0,0.00017973,2]
[403137900,1769188235849,-1500.000001,0.0001799,2]
[403137901,1769188235859,-3764.6399716,0.00017993,2]
[403137902,1769188235872,-127849.3683743,0.00017993,2]
[403137903,1769188235883,-28310.6060035,0.00017993,2]
[403137904,1769188235893,-151.0,0.00017997,2]
[403137905,1769188235903,-467.29689224,0.00017998,2]
[403137906,1769188235913,-300.0,0.00017999,2]
[403137907,1769188235923,-665.96586545,0.00017999,2]
[403137908,1769188235933,-380.69489282,0.00017999,2]
[403137909,1769188235943,-300.0,0.00017999,2]
[403137910,1769188235952,-666.0,0.00017999,2]
[403137911,1769188235962,-250838.91525574,0.00018,2]
[403137912,1769188236011,-353.8945,0.00018,2]
[403137922,1769188238308,-252.19924344,0.000179,2]
[403137923,1769188238361,-2463.31779375,0.000179,2]
[403137924,1769188238371,-157.10445278,0.000179,2]
[403137925,1769188238381,-3796836.46426084,0.00018,2]
[403137926,1769188238468,-544.69271696,0.00018,2]
[403137927,1769188238522,-5717.06548,0.00018,2]
[403137939,1769188240518,-377.52272345,0.00018,2]
[403137941,1769188241027,-543.08655482,0.00018,2]
[403137942,1769188241038,-5122899.77407843,0.00018,2]
[403137943,1769188241047,-454704.16261548,0.00018,2]
[403137944,1769188241056,-183252.34848838,0.00018,2]
[403137945,1769188241075,-382.43125007,0.00018,2]
[403137946,1769188241086,-794.49774892,0.00018,2]
[403137947,1769188241109,-404.09595813,0.00018,2]
[403137967,1769188243469,-17.50261896,0.00018,2]
[403137968,1769188243604,-732.80617441,0.00018,2]
[403137969,1769188243657,-5148.72209,0.00018,2]
[403137970,1769188243711,-510.23703727,0.00018,2]
[403138131,1769188246611,-151.0,0.00017082,2]
[403138133,1769188246623,-151.0,0.00017082,2]
[403138135,1769188246634,-13206.44744288,0.00018,2]
[403138140,1769188246718,-291.3,0.00018,2]
[403138141,1769188246730,-3152.51860586,0.00018,2]
[403138142,1769188246743,-12714.54804547,0.00018,2]
[403138143,1769188246755,-257.42503718,0.00018,2]
[403138144,1769188246767,-419.81564882,0.00018,2]
[403138145,1769188246965,-1778.6626329,0.00018,2]
[403138146,1769188246978,-5725.65316996,0.00018,2]
[403138152,1769188506732,-182.47,0.00013756,2]
[403138153,1769188773898,8477.96,0.00013612,2]
[403138154,1769188946327,-500.0,0.00014763,2]
[403138155,1769188946353,-300.0,0.00014772,2]
[403138156,1769188946378,-2500.0,0.00014773,2]
[403138157,1769188946403,-6715.4939,0.00014773,2]
[403138158,1769188946428,-2629.9872,0.00014773,2]
[403138159,1769188946458,-157.68395652,0.00014863,2]
[403138160,1769188946486,-6855.44292991,0.00014863,2]
[403138161,1769188946511,-150.0,0.00014869,2]
[403138162,1769188946539,-500.0,0.0001487,2]
[403138163,1769188946569,-500.0,0.0001487,2]
[403138164,1769188946596,-500.0,0.0001487,2]
[403138165,1769188946622,-500.0,0.0001487,2]
[403138166,1769188946650,-500.0,0.0001487,2]
[403138167,1769188946686,-500.0,0.0001487,2]
[403138168,1769188946715,-500.0,0.0001487,2]
[403138169,1769188946743,-500.0,0.0001487,2]
[403138170,1769188946771,-500.0,0.0001487,2]
[403138171,1769188946798,-500.0,0.0001487,2]
[403138172,1769188946825,-500.0,0.0001487,2]
[403138173,1769188946852,-500.0,0.0001487,2]
[403138174,1769188946878,-500.0,0.0001487,2]
[403138175,1769188947234,-500.0,0.0001487,2]
[403138176,1769188947263,-500.0,0.0001487,2]
[403138177,1769188947292,-500.0,0.0001487,2]
[403138178,1769188947319,-500.0,0.0001487,2]
[403138179,1769188947345,-500.0,0.0001487,2]
[403138180,1769188947373,-500.0,0.0001487,2]
[403138181,1769188947405,-500.0,0.0001487,2]
[403138182,1769188947433,-500.0,0.0001487,2]
[403138183,1769188947461,-500.0,0.0001487,2]
[403138184,1769188947489,-500.0,0.0001487,2]
[403138185,1769188947517,-500.0,0.0001487,2]
[403138186,1769188947544,-500.0,0.0001487,2]
[403138187,1769188947570,-500.0,0.0001487,2]
[403138188,1769188947597,-500.0,0.0001487,2]
[403138189,1769188947624,-500.0,0.0001487,2]
[403138190,1769188947650,-500.0,0.0001487,2]
[403138191,1769188947676,-500.0,0.0001487,2]
[403138192,1769188947702,-500.0,0.0001487,2]
[403138193,1769188947731,-500.0,0.0001487,2]
[403138194,1769188947757,-500.0,0.0001487,2]
[403138195,1769188947784,-500.0,0.0001487,2]
[403138196,1769188947814,-500.0,0.0001487,2]
[403138197,1769188947841,-500.0,0.0001487,2]
[403138198,1769188947868,-500.0,0.0001487,2]
[403138199,1769188947894,-500.0,0.0001487,2]
[403138200,1769188947920,-152.52013664,0.0001487,2]
[403138201,1769188947947,-500.0,0.0001487,2]
[403138202,1769188947976,-500.0,0.0001487,2]
[403138203,1769188948003,-500.0,0.0001487,2]
[403138204,1769188948036,-500.0,0.0001487,2]
[403138205,1769188948069,-500.0,0.0001487,2]
[403138206,1769188948098,-500.0,0.0001487,2]
[403138207,1769188948125,-500.0,0.0001487,2]
[403138208,1769188948152,-500.0,0.0001487,2]
[403138209,1769188948179,-500.0,0.0001487,2]
[403138210,1769188948207,-500.0,0.0001487,2]
[403138211,1769188948234,-500.0,0.0001487,2]
[403138212,1769188948261,-500.0,0.0001487,2]
[403138213,1769188948288,-500.0,0.0001487,2]
[403138214,1769188948315,-500.0,0.0001487,2]
[403138215,1769188948342,-500.0,0.0001487,2]
[403138216,1769188948370,-500.0,0.0001487,2]
[403138217,1769188948396,-500.0,0.0001487,2]
[403138218,1769188948422,-500.0,0.0001487,2]
[403138219,1769188948460,-500.0,0.0001487,2]
[403138220,1769188948492,-500.0,0.0001487,2]
[403138221,1769188948520,-500.0,0.0001487,2]
[403138222,1769188948551,-500.0,0.0001487,2]
[403138223,1769188948579,-500.0,0.0001487,2]
[403138224,1769188948607,-500.0,0.0001487,2]
[403138225,1769188948637,-600.0,0.0001487,2]
[403138226,1769188948666,-500.0,0.0001487,2]
[403138227,1769188948698,-5127.99635203,0.00014872,2]
[403138228,1769188948725,-372.61898837,0.00014872,2]
[403138229,1769188948756,-82438.25653653,0.00014873,2]
[403138231,1769189245180,764.98412778,0.000176,30]
[403138232,1769189246851,648.34835435,0.000176,30]
[403138233,1769189251915,500.0,0.000176,30]
[403138234,1769189254443,500.0,0.000176,30]
[403138235,1769189254954,500.0,0.00013,2]
[403138236,1769189255465,657.11,0.00013,2]
[403138237,1769189255492,320.17659546,0.00013,2]
[403138241,1769189364166,-4703.85680595,0.000147,2]
[403138242,1769189364191,-621.96730605,0.00014773,2]
[403138265,1769189431508,-932.33918466,0.00014755,2]
[403138266,1769189431518,-150.0,0.00014772,2]
[403138267,1769189431527,-2692.41781534,0.00014773,2]
[403138268,1769189431561,-139707.5601172,0.00014773,2]
[403138269,1769189431631,-856978.05476141,0.00014773,2]
[403138270,1769189431641,-500.0,0.000148,2]
[403138271,1769189431650,-500.0,0.0001481,2]
[403138272,1769189431660,-500.0,0.00014871,2]
[403138273,1769189431669,-575.25201367,0.00014871,2]
[403138275,1769189431678,-500.0,0.00014871,2]
[403138277,1769189431688,-500.0,0.00014871,2]
[403138279,1769189431697,-500.0,0.00014871,2]
[403138282,1769189431713,-500.0,0.00014871,2]
[403138284,1769189431726,-500.0,0.00014871,2]
[403138286,1769189431736,-500.0,0.00014871,2]
[403138288,1769189431745,-500.0,0.00014871,2]
[403138290,1769189431755,-500.0,0.00014871,2]
[403138292,1769189431764,-500.0,0.00014871,2]
[403138294,1769189431773,-500.0,0.00014871,2]
[403138296,1769189431784,-1188.8939297,0.00014872,2]
[403138298,1769189431794,-23291.873974,0.00014872,2]
[403138300,1769189431803,-260.83329186,0.00014872,2]
[403138302,1769189431812,-188.47547051,0.00014872,2]
[403138304,1769189431821,-531.48950376,0.00014873,2]
[403138306,1769189431831,-500.0,0.00014873,2]
[403138308,1769189431840,-500.0,0.00014873,2]
[403138310,1769189431849,-500.0,0.00014873,2]
[403138312,1769189431858,-500.0,0.00014873,2]
[403138314,1769189431867,-500.0,0.00014873,2]
[403138316,1769189431878,-500.0,0.00014873,2]
[403138318,1769189431890,-500.0,0.00014873,2]
[403138320,1769189431900,-500.0,0.00014873,2]
[403138322,1769189431910,-246.33177942,0.000149,2]
[403138324,1769189431920,-500.0,0.00015,2]
[403138326,1769189431930,-1333.31708973,0.00015,2]
[403138328,1769189431939,-8175.48539167,0.00015,2]
[403138330,1769189431949,-4703.85680592,0.00015056,2]
[403138332,1769189431959,-12217.4579,0.00015073,2]
[403138334,1769189431968,-1000.0,0.00015073,2]
[403138336,1769189431978,-246.33177937,0.00015233,2]
[403138338,1769189431988,-166.66,0.00015389,2]
[403138340,1769189431997,-4625.43220858,0.00015411,2]
[403138342,1769189432011,-78.42459734,0.00015411,2]
[403138344,1769189432020,-246.33177937,0.00015567,2]
[403138346,1769189432029,-999.99,0.00015713,2]
[403138347,1769189432038,-150.99,0.00015713,2]
[403138348,1769189432048,-9999.99,0.00015713,2]
[403138349,1769189432057,-166.66,0.00015713,2]
[403138350,1769189432066,-4703.85680592,0.00015767,2]
[403138351,1769189432080,-318.57,0.00015867,2]
[403138352,1769189432090,-246.33177937,0.000159,2]
[403138353,1769189432099,-3569.51,0.00015965,2]
[403138354,1769189432108,-2897.70284914,0.0001599,2]
[403138355,1769189432117,-777.72,0.00015992,2]
[403138356,1769189432126,-500.0,0.00016,3]
[403138357,1769189432138,-166.66,0.00016037,2]
[403138358,1769189432147,-200.0,0.00016072,2]
[403138359,1769189432156,-4703.85680592,0.00016122,2]
[403138360,1769189432167,-246.33177937,0.00016233,2]